fUST/lending_fUST_20251004
["ID","MTS","AMOUNT","RATE_DAILY","PERIOD"]
[389113021,1759582251972,-1061.231118,0.00019452,2]
[389113023,1759582251981,-889.58,0.00019452,2]
[389113024,1759582251991,-500.0,0.00019452,2]
[389113026,1759582252000,-232.342074,0.00019452,2]
[389113028,1759582252011,-428.21618788,0.00019452,2]
[389113030,1759582252019,-500.0,0.00019452,2]
[389113031,1759582252030,-500.0,0.00019452,2]
[389113033,1759582252039,-970.24,0.00019452,2]
[389113035,1759582252048,-232.342074,0.00019452,2]
[389113037,1759582252058,-890.79,0.00019452,2]
[389113038,1759582252067,-466.96776007,0.00019452,2]
[389113040,1759582252076,-500.0,0.00019452,2]
[389113042,1759582252086,-560.22,0.00019452,2]
[389113043,1759582252096,-232.342074,0.00019452,2]
[389113045,1759582252107,-500.0,0.00019452,2]
[389113047,1759582252116,-509.79,0.00019452,2]
[389113049,1759582252125,-500.0,0.00019452,2]
[389113051,1759582252135,-500.0,0.00019452,2]
[389113052,1759582252144,-850.99,0.00019452,2]
[389113054,1759582252153,-1111.72,0.00019452,2]
[389113055,1759582252163,-500.0,0.00019452,2]
[389113057,1759582252172,-752.66,0.00019452,2]
[389113059,1759582252181,-633.91,0.00019452,2]
[389113060,1759582252191,-1046.13,0.00019452,2]
[389113062,1759582252200,-2794.99,0.00019452,2]
[389113064,1759582252210,-500.0,0.00019452,2]
[389113066,1759582252220,-1659.91,0.00019452,2]
[389113067,1759582252229,-500.0,0.00019452,2]
[389113069,1759582252239,-500.0,0.00019452,2]
[389113071,1759582252248,-500.0,0.00019452,2]
[389113073,1759582252258,-991.41,0.00019452,2]
[389113074,1759582252268,-500.0,0.00019452,2]
[389113076,1759582252277,-500.0,0.00019452,2]
[389113078,1759582252287,-500.0,0.00019452,2]
[389113079,1759582252296,-863.73,0.00019452,2]
[389113081,1759582252306,-580.2,0.00019452,2]
[389113083,1759582252315,-500.0,0.00019452,2]
[389113084,1759582252325,-500.0,0.00019452,2]
[389113086,1759582252334,-500.0,0.00019452,2]
[389113088,1759582252343,-500.0,0.00019452,2]
[389113090,1759582252352,-500.0,0.00019452,2]
[389113091,1759582252362,-500.0,0.00019452,2]
[389113093,1759582252373,-500.0,0.00019452,2]
[389113095,1759582252382,-500.0,0.00019452,2]
[389113097,1759582252392,-500.0,0.00019452,2]
[389113098,1759582252401,-1170.5,0.00019452,2]
[389113100,1759582252411,-500.0,0.00019452,2]
[389113102,1759582252420,-500.0,0.00019452,2]
[389113103,1759582252430,-500.0,0.00019452,2]
[389113105,1759582252439,-500.0,0.00019452,2]
[389113107,1759582252450,-959.77,0.00019452,2]
[389113108,1759582252461,-491.8156685,0.00019452,2]
[389113110,1759582252471,-966.58,0.00019452,2]
[389113112,1759582252481,-500.0,0.00019452,2]
[389113113,1759582252490,-500.0,0.00019452,2]
[389113115,1759582252499,-500.0,0.00019452,2]
[389113117,1759582252510,-500.0,0.00019452,2]
[389113118,1759582252519,-500.0,0.00019452,2]
[389113120,1759582252529,-500.0,0.00019452,2]
[389113122,1759582252538,-654.0,0.00019452,2]
[389113124,1759582252548,-2612.01,0.00019452,2]
[389113125,1759582252557,-500.0,0.00019452,2]
[389113127,1759582252567,-345.71553071,0.00019452,2]
[389113129,1759582252577,-500.0,0.00019452,2]
[389113131,1759582252587,-500.0,0.00019452,2]
[389113132,1759582252596,-500.0,0.00019452,2]
[389113134,1759582252606,-500.0,0.00019452,2]
[389113136,1759582252616,-810.31,0.00019452,2]
[389113138,1759582252625,-500.0,0.00019452,2]
[389113139,1759582252635,-500.0,0.00019452,2]
[389113141,1759582252645,-500.0,0.00019452,2]
[389113143,1759582252654,-500.0,0.00019452,2]
[389113144,1759582252663,-500.0,0.00019452,2]
[389113146,1759582252673,-696.23,0.00019452,2]
[389113148,1759582252683,-500.0,0.00019452,2]
[389113150,1759582252692,-500.0,0.00019452,2]
[389113152,1759582252707,-500.0,0.00019452,2]
[389113153,1759582252717,-500.0,0.00019452,2]
[389113155,1759582252730,-500.0,0.00019452,2]
[389113157,1759582252739,-502.07718622,0.00019452,2]
[389113159,1759582252749,-500.0,0.00019452,2]
[389113161,1759582252758,-612.81,0.00019452,2]
[389113162,1759582252768,-1207.67,0.00019452,2]
[389113164,1759582252778,-500.0,0.00019452,2]
[389113166,1759582252787,-500.0,0.00019452,2]
[389113167,1759582252797,-500.0,0.00019452,2]
[389113169,1759582252807,-500.0,0.00019452,2]
[389113171,1759582252817,-1881.62,0.00019452,2]
[389113173,1759582252829,-500.0,0.00019452,2]
[389113175,1759582252840,-804.82,0.00019452,2]
[389113177,1759582252849,-500.0,0.00019452,2]
[389113178,1759582252859,-5135.51,0.00019452,2]
[389113180,1759582252868,-500.0,0.00019452,2]
[389113182,1759582252878,-944.8,0.00019452,2]
[389113184,1759582252888,-500.0,0.00019452,2]
[389113185,1759582252898,-500.0,0.00019452,2]
[389113187,1759582252908,-500.0,0.00019452,2]
[389113189,1759582252918,-500.0,0.00019452,2]
[389113191,1759582252927,-1075.58,0.00019452,2]
[389113192,1759582252937,-465.806335,0.00019452,2]
[389113194,1759582252947,-2716.88,0.00019452,2]
[389113196,1759582252956,-465.806335,0.00019452,2]
[389113198,1759582252966,-334.40634867,0.00019452,2]
[389113199,1759582252976,-500.0,0.00019452,2]
[389113201,1759582252986,-500.0,0.00019452,2]
[389113203,1759582252996,-465.806335,0.00019452,2]
[389113205,1759582253006,-500.0,0.00019452,2]
[389113207,1759582253015,-1462.49,0.00019452,2]
[389113208,1759582253025,-465.806335,0.00019452,2]
[389113210,1759582253035,-549.30809022,0.00019452,2]
[389113212,1759582253045,-786.08,0.00019452,2]
[389113214,1759582253055,-500.0,0.00019452,2]
[389113215,1759582253066,-151.0,0.00019452,2]
[389113217,1759582253077,-500.0,0.00019452,2]
[389113219,1759582253087,-407.286452,0.00019452,2]
[389113221,1759582253097,-336.82816364,0.00019452,2]
[389113223,1759582253106,-500.0,0.00019452,2]
[389113224,1759582253116,-407.286452,0.00019452,2]
[389113226,1759582253125,-500.0,0.00019452,2]
[389113228,1759582253135,-407.286452,0.00019452,2]
[389113230,1759582253145,-500.0,0.00019452,2]
[389113231,1759582253154,-407.286452,0.00019452,2]
[389113233,1759582253164,-500.0,0.00019452,2]
[389113235,1759582253173,-500.0,0.00019452,2]
[389113237,1759582253183,-151.0,0.00019452,2]
[389113238,1759582253192,-500.0,0.00019452,2]
[389113240,1759582253202,-500.0,0.00019452,2]
[389113242,1759582253211,-511.28,0.00019452,2]
[389113244,1759582253221,-151.0,0.00019452,2]
[389113245,1759582253231,-151.0,0.00019452,2]
[389113247,1759582253240,-500.0,0.00019452,2]
[389113249,1759582253250,-500.0,0.00019452,2]
[389113251,1759582253260,-1047.68,0.00019452,2]
[389113253,1759582253269,-1301.49,0.00019452,2]
[389113254,1759582253279,-841.67,0.00019452,2]
[389113256,1759582253289,-500.0,0.00019452,2]
[389113258,1759582253299,-500.0,0.00019452,2]
[389113260,1759582253308,-970.1,0.00019452,2]
[389113262,1759582253318,-500.0,0.00019452,2]
[389113263,1759582253327,-500.0,0.00019452,2]
[389113265,1759582253337,-531.12,0.00019452,2]
[389113267,1759582253347,-178.54979957,0.00019452,2]
[389113269,1759582253357,-414.19280358,0.00019452,2]
[389113270,1759582253366,-2278.95,0.00019452,2]
[389113272,1759582253376,-3686.13,0.00019452,2]
[389113274,1759582253386,-475.9178438,0.00019452,2]
[389113276,1759582253395,-500.0,0.00019452,2]
[389113278,1759582253404,-500.0,0.00019452,2]
[389113279,1759582253414,-585.68,0.00019452,2]
[389113281,1759582253424,-312.228017,0.00019452,2]
[389113283,1759582253433,-312.228017,0.00019452,2]
[389113285,1759582253443,-2796.07,0.00019452,2]
[389113287,1759582253453,-312.228017,0.00019452,2]
[389113288,1759582253463,-1336.609448,0.00019452,2]
[389113290,1759582253473,-1219.25,0.00019452,2]
[389113292,1759582253487,-312.228017,0.00019452,2]
[389113294,1759582253497,-1336.609448,0.00019452,2]
[389113296,1759582253507,-152.174208,0.00019452,2]
[389113297,1759582253516,-500.0,0.00019452,2]
[389113299,1759582253526,-1336.609448,0.00019452,2]
[389113301,1759582253536,-1830.54,0.00019452,2]
[389113303,1759582253546,-500.0,0.00019452,2]
[389113316,1759582253705,-1336.609448,0.00019452,2]
[389113318,1759582253715,-500.0,0.00019452,2]
[389113320,1759582253726,-500.0,0.00019452,2]
[389113322,1759582253735,-500.0,0.00019452,2]
[389113324,1759582253746,-500.0,0.00019452,2]
[389113325,1759582253755,-500.0,0.00019452,2]
[389113327,1759582253764,-500.0,0.00019452,2]
[389113329,1759582253775,-151.0,0.00019452,2]
[389113331,1759582253784,-4461.67,0.00019452,2]
[389113332,1759582253793,-500.0,0.00019452,2]
[389113334,1759582253805,-500.0,0.00019452,2]
[389113336,1759582253814,-500.0,0.00019452,2]
[389113338,1759582253823,-500.0,0.00019452,2]
[389113340,1759582253832,-622.76,0.00019452,2]
[389113341,1759582253842,-1711.92,0.00019452,2]
[389113343,1759582253851,-500.0,0.00019452,2]
[389113345,1759582253860,-500.0,0.00019452,2]
[389113347,1759582253869,-500.0,0.00019452,2]
[389113349,1759582253878,-759.509332,0.00019452,2]
[389113350,1759582253888,-500.0,0.00019452,2]
[389113352,1759582253897,-1288.58,0.00019452,2]
[389113354,1759582253906,-343.42999065,0.00019452,2]
[389113355,1759582253915,-759.509332,0.00019452,2]
[389113357,1759582253924,-151.0,0.00019452,2]
[389113359,1759582253934,-151.0,0.00019452,2]
[389113361,1759582253944,-480.36958762,0.00019452,2]
[389113363,1759582253954,-500.0,0.00019452,2]
[389113364,1759582253963,-898.81,0.00019452,2]
[389113366,1759582253973,-759.509332,0.00019452,2]
[389113368,1759582253982,-151.0,0.00019452,2]
[389113370,1759582253992,-759.509332,0.00019452,2]
[389113372,1759582254001,-500.0,0.00019452,2]
[389113373,1759582254011,-151.0,0.00019452,2]
[389113375,1759582254020,-6171.37,0.00019452,2]
[389113377,1759582254029,-642.0,0.00019452,2]
[389113379,1759582254039,-151.0,0.000195,2]
[389113381,1759582254053,-408.0,0.000195,2]
[389113383,1759582254067,-151.0,0.000195,2]
[389113384,1759582254076,-166.0,0.00019501,2]
[389113386,1759582254086,-500.0,0.00019516,2]
[389113388,1759582254095,-500.0,0.00019516,2]
[389113390,1759582254104,-500.01,0.00019526,2]
[389113391,1759582254114,-268.28,0.00019526,2]
[389113393,1759582254124,-268.28,0.00019526,2]
[389113395,1759582254134,-268.28,0.00019526,2]
[389113397,1759582254144,-268.28,0.00019526,2]
[389113399,1759582254153,-268.28,0.00019526,2]
[389113400,1759582254162,-268.28,0.00019526,2]
[389113402,1759582254172,-268.3,0.00019526,2]
[389113404,1759582254182,-151.0,0.000196,2]
[389113405,1759582254191,-151.0,0.000196,2]
[389113407,1759582254201,-4743.11469375,0.00019626,2]
[389113409,1759582254210,-500.0,0.0001967,2]
[389113411,1759582254220,-159.1071477,0.0001967,2]
[389113412,1759582254229,-500.0,0.0001967,2]
[389113414,1759582254238,-500.0,0.0001967,2]
[389113416,1759582254248,-500.0,0.0001967,2]
[389113418,1759582254258,-500.0,0.0001967,2]
[389113420,1759582254267,-500.0,0.00019688,2]
[389113421,1759582254276,-151.0,0.000197,2]
[389113423,1759582254285,-616.10478512,0.00019721,2]
[389113425,1759582254294,-780.31460735,0.00019721,2]
[389113427,1759582254303,-500.0,0.00019721,2]
[389113428,1759582254312,-1004.20138525,0.00019721,2]
[389113430,1759582254321,-576.43923875,0.00019721,2]
[389113432,1759582254330,-1000.0,0.00019721,2]
[389113434,1759582254339,-1000.0,0.00019721,2]
[389113436,1759582254348,-1000.0,0.00019721,2]
[389113438,1759582254357,-1000.0,0.00019721,2]
[389113440,1759582254366,-1000.0,0.00019721,2]
[389113442,1759582254375,-1000.0,0.00019721,2]
[389113444,1759582254384,-1000.0,0.00019721,2]
[389113445,1759582254393,-500.98610482,0.00019721,2]
[389113446,1759582254402,-1000.0,0.00019721,2]
[389113447,1759582254411,-559.15453947,0.00019721,2]
[389113448,1759582254420,-1000.0,0.00019721,2]
[389113449,1759582254429,-1000.0,0.00019721,2]
[389113450,1759582254438,-1000.0,0.00019721,2]
[389113451,1759582254447,-768.47350391,0.00019721,2]
[389113452,1759582254456,-940.32014047,0.00019721,2]
[389113453,1759582254466,-1000.0,0.00019721,2]
[389113454,1759582254475,-1000.0,0.00019721,2]
[389113455,1759582254484,-1000.0,0.00019721,2]
[389113456,1759582254494,-507.37597527,0.00019721,2]
[389113457,1759582254503,-1000.0,0.00019721,2]
[389113458,1759582254512,-1000.0,0.00019721,2]
[389113459,1759582254521,-955.59347907,0.00019721,2]
[389113460,1759582254530,-1000.0,0.00019721,2]
[389113461,1759582254539,-1000.0,0.00019721,2]
[389113462,1759582254548,-1000.0,0.00019721,2]
[389113463,1759582254558,-1000.0,0.00019721,2]
[389113464,1759582254567,-151.0,0.00019721,2]
[389113465,1759582254576,-151.0,0.00019721,2]
[389113466,1759582254585,-151.0,0.00019721,2]
[389113467,1759582254594,-151.0,0.00019721,2]
[389113468,1759582254603,-151.0,0.00019721,2]
[389113469,1759582254613,-151.0,0.00019721,2]
[389113470,1759582254622,-151.0,0.00019721,2]
[389113471,1759582254632,-151.0,0.00019721,2]
[389113472,1759582254641,-151.0,0.00019721,2]
[389113473,1759582254651,-151.0,0.00019721,2]
[389113474,1759582254660,-151.0,0.00019721,2]
[389113475,1759582254669,-151.0,0.00019721,2]
[389113476,1759582254679,-151.0,0.00019721,2]
[389113477,1759582254688,-151.0,0.00019721,2]
[389113478,1759582254702,-190.96123,0.00019721,2]
[389113479,1759582254712,-190.96123,0.00019721,2]
[389113480,1759582254723,-151.0,0.00019721,2]
[389113481,1759582254732,-190.96123,0.00019721,2]
[389113482,1759582254741,-179.749958,0.00019721,2]
[389113483,1759582254750,-190.96123,0.00019721,2]
[389113484,1759582254759,-179.749958,0.00019721,2]
[389113485,1759582254768,-179.749958,0.00019721,2]
[389113486,1759582254778,-179.749958,0.00019721,2]
[389113487,1759582254793,-438.93159,0.00019721,2]
[389113489,1759582254812,-438.93159,0.00019721,2]
[389113490,1759582254821,-438.93159,0.00019721,2]
[389113491,1759582254830,-438.93159,0.00019721,2]
[389113492,1759582254839,-151.0,0.00019721,2]
[389113493,1759582254848,-151.0,0.00019721,2]
[389113495,1759582254857,-151.0,0.00019721,2]
[389113496,1759582254866,-435.065684,0.00019721,2]
[389113498,1759582254876,-151.0,0.00019721,2]
[389113500,1759582254885,-435.065684,0.00019721,2]
[389113501,1759582254896,-435.065684,0.00019721,2]
[389113503,1759582254907,-435.065684,0.00019721,2]
[389113505,1759582254918,-151.0,0.00019721,2]
[389113507,1759582254927,-151.0,0.00019721,2]
[389113510,1759582254938,-151.0,0.00019721,2]
[389113512,1759582254948,-151.0,0.00019721,2]
[389113514,1759582254958,-151.0,0.00019721,2]
[389113516,1759582254967,-151.0,0.00019721,2]
[389113517,1759582254976,-151.0,0.00019721,2]
[389113519,1759582254987,-151.0,0.00019721,2]
[389113522,1759582254998,-151.0,0.00019721,2]
[389113523,1759582255008,-500.0,0.00019726,2]
[389113525,1759582255018,-1129.15,0.00019726,2]
[389113527,1759582255031,-500.0,0.00019726,2]
[389113530,1759582255041,-500.0,0.00019726,2]
[389113532,1759582255050,-500.0,0.00019726,2]
[389113533,1759582255059,-500.0,0.00019726,2]
[389113535,1759582255069,-500.0,0.00019726,2]
[389113537,1759582255078,-500.0,0.00019726,2]
[389113539,1759582255088,-341.08258778,0.00019726,2]
[389113541,1759582255098,-363.35272984,0.00019726,2]
[389113543,1759582255107,-500.0,0.00019726,2]
[389113545,1759582255116,-500.0,0.00019726,2]
[389113547,1759582255125,-500.0,0.00019726,2]
[389113549,1759582255134,-635.33,0.00019726,2]
[389113551,1759582255143,-552.57,0.00019726,2]
[389113553,1759582255152,-734.82,0.00019726,2]
[389113555,1759582255161,-500.0,0.00019726,2]
[389113557,1759582255170,-500.0,0.00019726,2]
[389113559,1759582255179,-500.0,0.00019726,2]
[389113561,1759582255188,-563.89,0.00019726,2]
[389113563,1759582255197,-693.1,0.00019726,2]
[389113565,1759582255208,-500.0,0.00019726,2]
[389113567,1759582255217,-553.96,0.00019726,2]
[389113569,1759582255226,-667.64,0.00019726,2]
[389113571,1759582255235,-500.0,0.00019726,2]
[389113573,1759582255244,-403.99493144,0.00019726,2]
[389113575,1759582255253,-500.0,0.00019726,2]
[389113577,1759582255263,-927.47,0.00019726,2]
[389113579,1759582255271,-500.0,0.00019726,2]
[389113581,1759582255280,-500.0,0.00019726,2]
[389113583,1759582255290,-500.0,0.00019726,2]
[389113585,1759582255299,-409.12002798,0.00019726,2]
[389113587,1759582255309,-882.4,0.00019726,2]
[389113589,1759582255318,-500.0,0.00019726,2]
[389113591,1759582255327,-500.0,0.00019726,2]
[389113593,1759582255336,-500.0,0.00019726,2]
[389113595,1759582255345,-500.0,0.00019726,2]
[389113597,1759582255354,-899.57,0.00019726,2]
[389113599,1759582255365,-228.04,0.00019726,2]
[389113601,1759582255374,-151.0,0.00019726,2]
[389113603,1759582255383,-500.0,0.00019726,2]
[389113605,1759582255392,-153.4775,0.00019726,2]
[389113607,1759582255402,-500.0,0.00019726,2]
[389113609,1759582255412,-151.0,0.00019726,2]
[389113611,1759582255421,-151.0,0.00019726,2]
[389113613,1759582255430,-500.0,0.00019726,2]
[389113615,1759582255440,-2623.04,0.00019726,2]
[389113617,1759582255450,-500.0,0.00019726,2]
[389113619,1759582255459,-151.0,0.00019726,2]
[389113621,1759582255469,-151.0,0.00019726,2]
[389113623,1759582255478,-151.0,0.00019726,2]
[389113625,1759582255487,-152.071232,0.00019726,2]
[389113627,1759582255496,-314.39204716,0.00019726,2]
[389113629,1759582255505,-500.0,0.00019726,2]
[389113631,1759582255514,-640.83,0.00019726,2]
[389113633,1759582255524,-500.0,0.00019726,2]
[389113635,1759582255533,-500.0,0.00019726,2]
[389113637,1759582255543,-500.0,0.00019726,2]
[389113639,1759582255553,-151.0,0.00019726,2]
[389113641,1759582255563,-500.0,0.00019726,2]
[389113643,1759582255573,-151.0,0.00019726,2]
[389113645,1759582255582,-500.0,0.00019726,2]
[389113647,1759582255592,-151.0,0.00019726,2]
[389113649,1759582255601,-151.0,0.00019726,2]
[389113651,1759582255611,-528.39763271,0.00019726,2]
[389113653,1759582255621,-500.0,0.00019726,2]
[389113655,1759582255630,-500.0,0.00019726,2]
[389113657,1759582255640,-151.0,0.00019726,2]
[389113659,1759582255649,-500.0,0.00019726,2]
[389113661,1759582255659,-151.0,0.00019726,2]
[389113663,1759582255670,-500.0,0.00019726,2]
[389113666,1759582255680,-1310.74,0.00019726,2]
[389113667,1759582255689,-151.0,0.00019726,2]
[389113669,1759582255700,-151.0,0.00019726,2]
[389113672,1759582255710,-151.0,0.00019726,2]
[389113674,1759582255719,-151.0,0.00019726,2]
[389113675,1759582255729,-151.0,0.00019726,2]
[389113678,1759582255740,-749.84,0.00019726,2]
[389113680,1759582255750,-151.0,0.00019726,2]
[389113682,1759582255760,-500.0,0.00019726,2]
[389113683,1759582255770,-151.0,0.00019726,2]
[389113686,1759582255780,-2382.25,0.00019726,2]
[389113687,1759582255791,-500.0,0.00019726,2]
[389113690,1759582255800,-707.87,0.00019726,2]
[389113691,1759582255811,-1283.05,0.00019726,2]
[389113694,1759582255822,-500.0,0.00019726,2]
[389113696,1759582255832,-500.0,0.00019726,2]
[389113697,1759582255842,-876.9,0.00019726,2]
[389113700,1759582255852,-151.0,0.00019726,2]
[389113701,1759582255863,-904.32,0.00019726,2]
[389113704,1759582255873,-151.0,0.00019726,2]
[389113705,1759582255883,-500.0,0.00019726,2]
[389113707,1759582255894,-500.0,0.00019726,2]
[389113709,1759582255905,-185.971397,0.00019726,2]
[389113711,1759582255915,-500.0,0.00019726,2]
[389113713,1759582255923,-185.971397,0.00019726,2]
[389113715,1759582255932,-185.971397,0.00019726,2]
[389113717,1759582255941,-542.11,0.00019726,2]
[389113719,1759582255950,-185.971397,0.00019726,2]
[389113721,1759582255959,-151.0,0.00019726,2]
[389113723,1759582255969,-151.0,0.00019726,2]
[389113725,1759582255978,-151.0,0.00019726,2]
[389113727,1759582255987,-500.0,0.00019726,2]
[389113729,1759582255996,-500.0,0.00019726,2]
[389113731,1759582256004,-271.261225,0.00019726,2]
[389113733,1759582256013,-500.0,0.00019726,2]
[389113735,1759582256022,-500.0,0.00019726,2]
[389113737,1759582256031,-271.261225,0.00019726,2]
[389113739,1759582256040,-271.261225,0.00019726,2]
[389113741,1759582256049,-500.0,0.00019726,2]
[389113743,1759582256058,-271.261225,0.00019726,2]
[389113745,1759582256067,-151.0,0.00019726,2]
[389113747,1759582256077,-151.0,0.00019726,2]
[389113749,1759582256086,-1143.82,0.00019726,2]
[389113751,1759582256095,-151.0,0.00019726,2]
[389113753,1759582256104,-151.0,0.00019726,2]
[389113755,1759582256113,-151.0,0.00019726,2]
[389113757,1759582256122,-1168.54,0.00019726,2]
[389113759,1759582256131,-551.2175941,0.00019726,2]
[389113761,1759582256139,-500.0,0.00019726,2]
[389113763,1759582256149,-403.03358231,0.00019726,2]
[389113765,1759582256157,-500.0,0.00019726,2]
[389113767,1759582256167,-151.0,0.00019726,2]
[389113770,1759582256177,-169.171735,0.00019726,2]
[389113772,1759582256186,-153.552444,0.00019726,2]
[389113774,1759582256195,-500.92,0.00019726,2]
[389113776,1759582256204,-500.0,0.00019726,2]
[389113778,1759582256213,-663.79,0.00019726,2]
[389113780,1759582256223,-500.0,0.00019726,2]
[389113782,1759582256231,-2928.1,0.00019726,2]
[389113784,1759582256240,-151.0,0.00019726,2]
[389113786,1759582256249,-753.15,0.00019726,2]
[389113788,1759582256258,-1528.06,0.00019726,2]
[389113790,1759582256267,-500.0,0.00019726,2]
[389113792,1759582256276,-500.0,0.00019726,2]
[389113794,1759582256284,-1221.58,0.00019726,2]
[389113796,1759582256293,-500.0,0.00019726,2]
[389113797,1759582256302,-500.0,0.00019726,2]
[389113799,1759582256311,-520.37,0.00019726,2]
[389113801,1759582256320,-562.82,0.00019726,2]
[389113804,1759582256329,-500.0,0.00019726,2]
[389113805,1759582256338,-500.0,0.00019726,2]
[389113807,1759582256347,-151.0,0.00019726,2]
[389113809,1759582256356,-157.052176,0.00019726,2]
[389113811,1759582256364,-500.0,0.00019726,2]
[389113813,1759582256373,-500.0,0.00019726,2]
[389113815,1759582256382,-500.0,0.00019726,2]
[389113818,1759582256392,-586.62,0.00019726,2]
[389113819,1759582256402,-1226.46,0.00019726,2]
[389113821,1759582256412,-500.0,0.00019726,2]
[389113823,1759582256422,-500.0,0.00019726,2]
[389113825,1759582256432,-758.10456,0.00019726,2]
[389113827,1759582256441,-758.10456,0.00019726,2]
[389113829,1759582256449,-758.10456,0.00019726,2]
[389113831,1759582256458,-758.10456,0.00019726,2]
[389113833,1759582256468,-500.0,0.00019726,2]
[389113835,1759582256477,-500.0,0.00019726,2]
[389113837,1759582256486,-1546.54,0.00019726,2]
[389113839,1759582256495,-500.0,0.00019726,2]
[389113841,1759582256503,-640.45,0.00019726,2]
[389113843,1759582256512,-500.0,0.00019726,2]
[389113845,1759582256522,-500.0,0.00019726,2]
[389113848,1759582256532,-500.0,0.00019726,2]
[389113849,1759582256542,-500.0,0.00019726,2]
[389113852,1759582256551,-511.85530165,0.00019726,2]
[389113854,1759582256560,-500.0,0.00019726,2]
[389113856,1759582256570,-514.22,0.00019726,2]
[389113857,1759582256578,-500.0,0.00019726,2]
[389113860,1759582256587,-577.75,0.00019726,2]
[389113861,1759582256597,-382.59827729,0.00019726,2]
[389113863,1759582256606,-621.59,0.00019726,2]
[389113865,1759582256615,-500.0,0.00019726,2]
[389113867,1759582256624,-500.0,0.00019726,2]
[389113870,1759582256634,-462.87791826,0.00019726,2]
[389113872,1759582256643,-878.25,0.00019726,2]
[389113874,1759582256652,-500.0,0.00019726,2]
[389113876,1759582256662,-532.16,0.00019726,2]
[389113877,1759582256671,-500.0,0.00019726,2]
[389113880,1759582256681,-500.0,0.00019726,2]
[389113882,1759582256690,-201.11231128,0.00019726,2]
[389113884,1759582256703,-500.0,0.00019726,2]
[389113886,1759582256712,-500.0,0.00019726,2]
[389113887,1759582256722,-500.0,0.00019726,2]
[389113889,1759582256731,-2202.03,0.00019726,2]
[389113892,1759582256741,-500.0,0.00019726,2]
[389113893,1759582256750,-500.0,0.00019726,2]
[389113895,1759582256759,-518.58,0.00019726,2]
[389113897,1759582256768,-1787.61,0.00019726,2]
[389113899,1759582256778,-500.0,0.00019726,2]
[389113902,1759582256788,-636.3,0.00019726,2]
[389113903,1759582256797,-657.33,0.00019726,2]
[389113905,1759582256806,-500.0,0.00019726,2]
[389113907,1759582256815,-500.0,0.00019726,2]
[389113926,1759582256970,-500.0,0.00019726,2]
[389113928,1759582256979,-500.0,0.00019726,2]
[389113929,1759582256989,-151.0,0.00019726,2]
[389113931,1759582256997,-151.0,0.00019726,2]
[389113933,1759582257006,-500.0,0.00019726,2]
[389113935,1759582257015,-500.0,0.00019726,2]
[389113937,1759582257025,-793.93,0.00019726,2]
[389113939,1759582257033,-377.804729,0.00019726,2]
[389113941,1759582257043,-377.804729,0.00019726,2]
[389113943,1759582257052,-500.0,0.00019726,2]